fUST/lending_fUST_20240609
["ID","MTS","AMOUNT","RATE_DAILY","PERIOD"]
[328845653,1717871442338,-500.0,0.00016438,2]
[328845654,1717871442348,-672.01,0.00016438,2]
[328845655,1717871442359,-672.01,0.00016438,2]
[328845656,1717871442369,-500.0,0.00016438,2]
[328845657,1717871442379,-500.0,0.00016438,2]
[328845658,1717871442389,-500.0,0.00016438,2]
[328845659,1717871442399,-513.05966408,0.00016438,2]
[328845660,1717871442409,-2443.88,0.00016438,2]
[328845661,1717871442419,-500.0,0.00016438,2]
[328845662,1717871442429,-627.17,0.00016438,2]
[328845663,1717871442439,-500.0,0.00016438,2]
[328845664,1717871442449,-464.03778587,0.00016438,2]
[328845665,1717871442462,-35.96221413,0.00016438,2]
[328845666,1717871442473,-504.09,0.00016438,2]
[328845667,1717871442483,-500.0,0.00016438,2]
[328845668,1717871442492,-615.68,0.00016438,2]
[328845669,1717871442502,-1169.43,0.00016438,2]
[328845670,1717871442522,-500.0,0.00016438,2]
[328845671,1717871442533,-500.0,0.00016438,2]
[328845672,1717871442544,-500.0,0.00016438,2]
[328845673,1717871442555,-9986.09,0.00016438,2]
[328845674,1717871442565,-500.0,0.00016438,2]
[328845675,1717871442576,-729.54,0.00016438,2]
[328845676,1717871442587,-263.22032484,0.00016438,2]
[328845677,1717871442598,-264.71223964,0.00016438,2]
[328845678,1717871442608,-500.0,0.00016438,2]
[328845679,1717871442620,-592.49,0.00016438,2]
[328845680,1717871442632,-500.0,0.00016438,2]
[328845681,1717871442642,-500.0,0.00016438,2]
[328845682,1717871442653,-500.0,0.00016438,2]
[328845683,1717871442664,-500.0,0.00016438,2]
[328845684,1717871442674,-536.21,0.00016438,2]
[328845685,1717871442685,-2453.06,0.00016438,2]
[328845686,1717871442696,-1467.98,0.00016438,2]
[328845687,1717871442707,-607.62,0.00016438,2]
[328845688,1717871442717,-500.0,0.00016438,2]
[328845689,1717871442728,-591.77,0.00016438,2]
[328845690,1717871442738,-500.0,0.00016438,2]
[328845691,1717871442749,-500.0,0.00016438,2]
[328845692,1717871442760,-500.0,0.00016438,2]
[328845693,1717871442770,-500.0,0.00016438,2]
[328845694,1717871442780,-500.0,0.00016438,2]
[328845695,1717871442791,-500.0,0.00016438,2]
[328845697,1717871442801,-3580.48,0.00016438,2]
[328845699,1717871442811,-500.0,0.00016438,2]
[328845700,1717871442821,-500.0,0.00016438,2]
[328845701,1717871442831,-724.7,0.00016438,2]
[328845702,1717871442841,-500.0,0.00016438,2]
[328845703,1717871442851,-500.0,0.00016438,2]
[328845704,1717871442862,-709.55,0.00016438,2]
[328845705,1717871442872,-500.0,0.00016438,2]
[328845706,1717871442882,-500.0,0.00016438,2]
[328845707,1717871442892,-500.0,0.00016438,2]
[328845708,1717871442903,-500.0,0.00016438,2]
[328845709,1717871442913,-1740.05,0.00016438,2]
[328845710,1717871442923,-500.0,0.00016438,2]
[328845711,1717871442933,-673.37,0.00016438,2]
[328845712,1717871442944,-500.0,0.00016438,2]
[328845713,1717871442958,-305.82468366,0.00016438,2]
[328845714,1717871442969,-1449.68,0.00016438,2]
[328845715,1717871442981,-500.0,0.00016438,2]
[328845716,1717871442993,-500.0,0.00016438,2]
[328845717,1717871443003,-500.0,0.00016438,2]
[328845718,1717871443013,-1057.93,0.00016438,2]
[328845719,1717871443024,-2745.31,0.00016438,2]
[328845720,1717871443037,-509.58,0.00016438,2]
[328845721,1717871443047,-542.32,0.00016438,2]
[328845722,1717871443058,-279.87167767,0.00016438,2]
[328845745,1717871444186,-220.12832233,0.00016438,2]
[328845747,1717871444197,-500.0,0.00016438,2]
[328845748,1717871444207,-731.55,0.00016438,2]
[328845749,1717871444218,-587.08,0.00016438,2]
[328845750,1717871444228,-406.3718762,0.00016438,2]
[328845751,1717871444241,-93.6281238,0.00016438,2]
[328845752,1717871444251,-500.0,0.00016438,2]
[328845753,1717871444261,-500.0,0.00016438,2]
[328845754,1717871444271,-200.09443159,0.00016438,2]
[328845755,1717871444283,-594.19556841,0.00016438,2]
[328845756,1717871444293,-500.0,0.00016438,2]
[328845757,1717871444303,-500.0,0.00016438,2]
[328845758,1717871444314,-500.0,0.00016438,2]
[328845759,1717871444324,-849.4907004,0.00016484,2]
[328845760,1717871444337,-2492.5,0.00016484,2]
[328845761,1717871445494,552.76,0.00010959,2]
[328845764,1717871447547,-79067.83105336,0.00016484,2]
[328845765,1717871447558,-274.99910967,0.000165,2]
[328845766,1717871447568,-210.70919737,0.00016544,2]
[328845767,1717871447578,-4236.27632862,0.00016636,2]
[328845768,1717871447587,-150.0,0.00016684,2]
[328845769,1717871447597,-672.01,0.00016711,2]
[328845770,1717871447607,-672.01,0.00016711,2]
[328845771,1717871447616,-355.79765278,0.00016712,7]
[328845772,1717871447625,-268.5794634,0.00016712,2]
[328845773,1717871447635,-500.0,0.00016712,2]
[328845774,1717871447644,-500.0,0.00016712,2]
[328845775,1717871447654,-500.0,0.00016712,2]
[328845776,1717871447663,-500.0,0.00016712,2]
[328845777,1717871447673,-500.0,0.00016712,2]
[328845778,1717871447682,-500.0,0.00016712,2]
[328845779,1717871447692,-500.0,0.00016712,2]
[328845780,1717871447702,-506.47,0.00016712,2]
[328845781,1717871447713,-151.0,0.00016712,2]
[328845782,1717871447722,-500.0,0.00016712,2]
[328845783,1717871447733,-500.0,0.00016712,2]
[328845784,1717871447743,-500.0,0.00016712,2]
[328845785,1717871447752,-500.0,0.00016712,2]
[328845786,1717871447763,-151.0,0.00016712,2]
[328845787,1717871447773,-260.06252,0.00016712,2]
[328845788,1717871447783,-500.0,0.00016712,2]
[328845789,1717871447793,-500.0,0.00016712,2]
[328845790,1717871447803,-500.0,0.00016712,2]
[328845791,1717871447816,-151.0,0.00016712,2]
[328845792,1717871447827,-500.0,0.00016712,2]
[328845793,1717871447836,-500.0,0.00016712,2]
[328845794,1717871447846,-223.333323,0.00016712,2]
[328845795,1717871447856,-500.0,0.00016712,2]
[328845796,1717871447866,-500.0,0.00016712,2]
[328845797,1717871447876,-151.0,0.00016712,2]
[328845798,1717871447886,-500.0,0.00016712,2]
[328845799,1717871447896,-151.0,0.00016712,2]
[328845800,1717871447906,-500.0,0.00016712,2]
[328845801,1717871447916,-500.0,0.00016712,2]
[328845802,1717871447926,-500.0,0.00016712,2]
[328845803,1717871447936,-500.0,0.00016712,2]
[328845804,1717871447950,-500.0,0.00016712,2]
[328845805,1717871447960,-500.0,0.00016712,2]
[328845806,1717871447971,-151.0,0.00016712,2]
[328845807,1717871447981,-500.0,0.00016712,2]
[328845808,1717871447993,-500.0,0.00016712,2]
[328845809,1717871448003,-500.0,0.00016712,2]
[328845810,1717871448013,-500.0,0.00016712,2]
[328845811,1717871448024,-151.0,0.00016712,2]
[328845812,1717871448035,-500.0,0.00016712,2]
[328845813,1717871448045,-151.0,0.00016712,2]
[328845814,1717871448056,-227.106988,0.00016712,2]
[328845815,1717871448066,-500.0,0.00016712,2]
[328845816,1717871448076,-500.0,0.00016712,2]
[328845817,1717871448086,-500.0,0.00016712,2]
[328845818,1717871448097,-500.0,0.00016712,2]
[328845819,1717871448107,-500.0,0.00016712,2]
[328845820,1717871448118,-704.28,0.00016712,2]
[328845821,1717871448129,-500.0,0.00016712,2]
[328845822,1717871448139,-500.0,0.00016712,2]
[328845823,1717871448149,-500.0,0.00016712,2]
[328845824,1717871448161,-500.0,0.00016712,2]
[328845825,1717871448171,-555.3140995,0.00016712,2]
[328845826,1717871448181,-500.0,0.00016712,2]
[328845827,1717871448192,-151.0,0.00016712,2]
[328845828,1717871448202,-500.0,0.00016712,2]
[328845829,1717871448212,-496.62831701,0.00016712,2]
[328845830,1717871448222,-170.60701289,0.00016712,2]
[328845831,1717871448233,-500.0,0.00016712,2]
[328845832,1717871448244,-584.80523407,0.00016712,2]
[328845833,1717871448254,-500.0,0.00016712,2]
[328845834,1717871448264,-153.272907,0.00016712,2]
[328845835,1717871448274,-500.0,0.00016712,2]
[328845836,1717871448284,-151.0,0.00016712,2]
[328845837,1717871448295,-500.0,0.00016712,2]
[328845838,1717871448305,-500.0,0.00016712,2]
[328845839,1717871448315,-151.0,0.00016712,2]
[328845840,1717871448325,-151.0,0.00016712,2]
[328845841,1717871448336,-162.32685027,0.00016712,2]
[328845842,1717871448346,-2443.88,0.00016712,2]
[328845843,1717871448356,-500.0,0.00016712,2]
[328845844,1717871448366,-627.17,0.00016712,2]
[328845845,1717871448376,-164.139363,0.00016712,2]
[328845846,1717871448387,-500.0,0.00016712,2]
[328845847,1717871448397,-500.0,0.00016712,2]
[328845848,1717871448407,-151.0,0.00016712,2]
[328845849,1717871448418,-215.539682,0.00016712,2]
[328845850,1717871448428,-500.0,0.00016712,2]
[328845851,1717871448438,-615.68,0.00016712,2]
[328845852,1717871448448,-1169.43,0.00016712,2]
[328845853,1717871448458,-500.0,0.00016712,2]
[328845854,1717871448469,-500.0,0.00016712,2]
[328845855,1717871448480,-151.0,0.00016712,2]
[328845856,1717871448490,-505.92399926,0.00016712,2]
[328845857,1717871448500,-9986.09,0.00016712,2]
[328845858,1717871448510,-151.0,0.00016712,2]
[328845859,1717871448520,-500.0,0.00016712,2]
[328845860,1717871448530,-729.54,0.00016712,2]
[328845861,1717871448540,-592.49,0.00016712,2]
[328845862,1717871448550,-570.57228022,0.00016712,2]
[328845863,1717871448560,-370.43653213,0.00016712,2]
[328845864,1717871448570,-151.0,0.00016712,2]
[328845865,1717871448580,-151.0,0.00016712,2]
[328845866,1717871448591,-151.0,0.00016712,2]
[328845867,1717871448600,-151.0,0.00016712,2]
[328845868,1717871448610,-151.0,0.00016712,2]
[328845869,1717871448620,-500.0,0.00016712,2]
[328845870,1717871448630,-500.0,0.00016712,2]
[328845871,1717871448640,-500.0,0.00016712,2]
[328845872,1717871448650,-2453.06,0.00016712,2]
[328845873,1717871448660,-151.0,0.00016712,2]
[328845874,1717871448670,-1467.98,0.00016712,2]
[328845875,1717871448680,-151.0,0.00016712,2]
[328845876,1717871448689,-151.242091,0.00016712,2]
[328845877,1717871448699,-607.62,0.00016712,2]
[328845878,1717871448709,-500.0,0.00016712,2]
[328845879,1717871448719,-591.77,0.00016712,2]
[328845880,1717871448730,-500.0,0.00016712,2]
[328845881,1717871448740,-541.04263812,0.00016712,2]
[328845882,1717871448750,-151.0,0.00016712,2]
[328845883,1717871448760,-151.0,0.00016712,2]
[328845884,1717871448769,-151.0,0.00016712,2]
[328845885,1717871448779,-500.0,0.00016712,2]
[328845886,1717871448789,-500.0,0.00016712,2]
[328845887,1717871448798,-500.0,0.00016712,2]
[328845888,1717871448808,-3580.48,0.00016712,2]
[328845889,1717871448818,-500.0,0.00016712,2]
[328845890,1717871448827,-151.0,0.00016712,2]
[328845891,1717871448837,-151.0,0.00016712,2]
[328845892,1717871448846,-151.0,0.00016712,2]
[328845893,1717871448856,-500.0,0.00016712,2]
[328845894,1717871448865,-724.7,0.00016712,2]
[328845895,1717871448875,-500.0,0.00016712,2]
[328845896,1717871448884,-709.55,0.00016712,2]
[328845897,1717871448894,-500.0,0.00016712,2]
[328845898,1717871448903,-151.0,0.00016712,2]
[328845899,1717871448913,-151.0,0.00016712,2]
[328845900,1717871448923,-151.0,0.00016712,2]
[328845901,1717871448932,-568.58636818,0.00016712,2]
[328845902,1717871448942,-500.0,0.00016712,2]
[328845903,1717871448955,-154.103294,0.00016712,2]
[328845904,1717871448965,-1740.05,0.00016712,2]
[328845905,1717871448975,-673.37,0.00016712,2]
[328845906,1717871448985,-151.0,0.00016712,2]
[328845907,1717871448995,-500.0,0.00016712,2]
[328845908,1717871449006,-151.0,0.00016712,2]
[328845909,1717871449016,-1449.68,0.00016712,2]
[328845910,1717871449027,-500.0,0.00016712,2]
[328845911,1717871449036,-500.0,0.00016712,2]
[328845912,1717871449047,-1057.93,0.00016712,2]
[328845913,1717871449056,-2745.31,0.00016712,2]
[328845914,1717871449066,-509.58,0.00016712,2]
[328845915,1717871449076,-542.32,0.00016712,2]
[328845916,1717871449086,-500.0,0.00016712,2]
[328845917,1717871449096,-731.55,0.00016712,2]
[328845918,1717871449105,-587.08,0.00016712,2]
[328845919,1717871449115,-151.0,0.00016712,2]
[328845920,1717871449125,-151.0,0.00016712,2]
[328845921,1717871449134,-151.0,0.00016712,2]
[328845922,1717871449144,-506.88,0.00016712,2]
[328845923,1717871449154,-500.0,0.00016712,2]
[328845924,1717871449163,-794.29,0.00016712,2]
[328845925,1717871449173,-500.0,0.00016712,2]
[328845926,1717871449183,-500.0,0.00016712,2]
[328845927,1717871449192,-500.0,0.00016712,2]
[328845928,1717871449202,-210.70919737,0.00016749,2]
[328845929,1717871449212,-1300.0,0.00016886,2]
[328845930,1717871449222,-800.0,0.000169,2]
[328845931,1717871449232,-151.0,0.000169,2]
[328845932,1717871449241,-210.70919737,0.00016955,2]
[328845933,1717871449251,-672.01,0.00016984,2]
[328845934,1717871449263,-44255.3051112,0.00016985,2]
[328845935,1717871449273,-151.0,0.00016985,2]
[328845936,1717871449283,-151.0,0.00016985,2]
[328845937,1717871449293,-151.0,0.00016985,2]
[328845938,1717871449303,-672.01,0.00016985,2]
[328845939,1717871449312,-151.0,0.00016985,2]
[328845940,1717871449322,-151.0,0.00016985,2]
[328845941,1717871449331,-151.0,0.00016985,2]
[328845942,1717871449341,-151.0,0.00016985,2]
[328845943,1717871449351,-151.0,0.00016985,2]
[328845944,1717871449361,-500.0,0.00016986,2]
[328845945,1717871449371,-500.0,0.00016986,2]
[328845946,1717871449380,-374.0201086,0.00016986,2]
[328845947,1717871449390,-500.0,0.00016986,2]
[328845948,1717871449400,-500.0,0.00016986,2]
[328845949,1717871449409,-500.0,0.00016986,2]
[328845950,1717871449418,-500.0,0.00016986,2]
[328845951,1717871449428,-506.47,0.00016986,2]
[328845952,1717871449437,-500.0,0.00016986,2]
[328845953,1717871449447,-500.0,0.00016986,2]
[328845954,1717871449457,-500.0,0.00016986,2]
[328845955,1717871449467,-500.0,0.00016986,2]
[328845956,1717871449476,-500.0,0.00016986,2]
[328845957,1717871449487,-500.0,0.00016986,2]
[328845958,1717871449496,-500.0,0.00016986,2]
[328845959,1717871449506,-151.0,0.00016986,2]
[328845960,1717871449516,-151.0,0.00016986,2]
[328845961,1717871449525,-500.0,0.00016986,2]
[328845962,1717871449535,-500.0,0.00016986,2]
[328845963,1717871449545,-500.0,0.00016986,2]
[328845964,1717871449555,-500.0,0.00016986,2]
[328845965,1717871449565,-151.0,0.00016986,2]
[328845966,1717871449575,-250.84246,0.00016986,2]
[328845967,1717871449585,-500.0,0.00016986,2]
[328845968,1717871449594,-500.0,0.00016986,2]
[328845969,1717871449604,-500.0,0.00016986,2]
[328845970,1717871449613,-500.0,0.00016986,2]
[328845971,1717871449623,-500.0,0.00016986,2]
[328845972,1717871449633,-500.0,0.00016986,2]
[328845973,1717871449643,-500.0,0.00016986,2]
[328845974,1717871449653,-500.0,0.00016986,2]
[328845975,1717871449662,-500.0,0.00016986,2]
[328845976,1717871449672,-500.0,0.00016986,2]
[328845977,1717871449682,-500.0,0.00016986,2]
[328845978,1717871449691,-500.0,0.00016986,2]
[328845979,1717871449701,-500.0,0.00016986,2]
[328845980,1717871449711,-500.0,0.00016986,2]
[328845981,1717871449720,-185.54679252,0.00016986,2]
[328845982,1717871449732,-500.0,0.00016986,2]
[328845983,1717871449741,-500.0,0.00016986,2]
[328845984,1717871449751,-704.28,0.00016986,2]
[328845985,1717871449760,-500.0,0.00016986,2]
[328845986,1717871449770,-632.75403515,0.00016986,2]
[328845987,1717871449780,-291.47323671,0.00016986,2]
[328845988,1717871449790,-500.0,0.00016986,2]
[328845989,1717871449799,-423.06029683,0.00016986,2]
[328845990,1717871449809,-500.0,0.00016986,2]
[328845991,1717871449818,-609.64052879,0.00016986,2]
[328845992,1717871449827,-500.0,0.00016986,2]
[328845993,1717871449836,-500.0,0.00016986,2]
[328845994,1717871449846,-500.0,0.00016986,2]
[328845995,1717871449855,-2443.88,0.00016986,2]
[328845996,1717871449864,-500.0,0.00016986,2]
[328845997,1717871449873,-627.17,0.00016986,2]
[328845998,1717871449882,-500.0,0.00016986,2]
[328845999,1717871449892,-500.0,0.00016986,2]
[328846000,1717871449901,-500.0,0.00016986,2]
[328846001,1717871449910,-615.68,0.00016986,2]
[328846002,1717871449919,-1169.43,0.00016986,2]
[328846003,1717871449928,-552.24988696,0.00016986,2]
[328846004,1717871449937,-500.0,0.00016986,2]
[328846005,1717871449948,-9986.09,0.00016986,2]
[328846006,1717871449960,-500.0,0.00016986,2]
[328846007,1717871449969,-729.54,0.00016986,2]
[328846008,1717871449980,-592.49,0.00016986,2]
[328846009,1717871449990,-151.0,0.00016986,2]
[328846010,1717871450000,-268.933704,0.00016986,2]
[328846011,1717871450009,-500.0,0.00016986,2]
[328846012,1717871450019,-500.0,0.00016986,2]
[328846013,1717871450030,-500.0,0.00016986,2]
[328846014,1717871450039,-2453.06,0.00016986,2]
[328846015,1717871450049,-1467.98,0.00016986,2]
[328846016,1717871450059,-607.62,0.00016986,2]
[328846017,1717871450069,-500.0,0.00016986,2]
[328846018,1717871450079,-591.77,0.00016986,2]
[328846019,1717871450088,-500.0,0.00016986,2]
[328846020,1717871450098,-364.86641781,0.00016986,2]
[328846021,1717871450108,-500.0,0.00016986,2]
[328846022,1717871450118,-3580.48,0.00016986,2]
[328846023,1717871450128,-500.0,0.00016986,2]
[328846024,1717871450138,-500.0,0.00016986,2]
[328846025,1717871450148,-724.7,0.00016986,2]
[328846026,1717871450158,-709.55,0.00016986,2]
[328846027,1717871450168,-500.0,0.00016986,2]
[328846028,1717871450177,-500.0,0.00016986,2]
[328846029,1717871450186,-1740.05,0.00016986,2]
[328846030,1717871450196,-673.37,0.00016986,2]
[328846031,1717871450205,-261.3701492,0.00016986,2]
[328846032,1717871450215,-1449.68,0.00016986,2]
[328846033,1717871450225,-500.0,0.00016986,2]
[328846034,1717871450238,-500.0,0.00016986,2]
[328846035,1717871450247,-1057.93,0.00016986,2]
[328846036,1717871450257,-2745.31,0.00016986,2]
[328846037,1717871450266,-509.58,0.00016986,2]
[328846038,1717871450275,-542.32,0.00016986,2]
[328846039,1717871450285,-500.0,0.00016986,2]
[328846040,1717871450295,-731.55,0.00016986,2]
[328846041,1717871450304,-587.08,0.00016986,2]
[328846042,1717871450314,-171.663988,0.00016986,2]
[328846043,1717871450324,-500.0,0.00016986,2]
[328846044,1717871450333,-794.29,0.00016986,2]
[328846045,1717871450343,-233.91974832,0.00016986,2]
[328846046,1717871450353,-500.0,0.00016986,2]
[328846047,1717871450362,-500.0,0.00016986,2]
[328846048,1717871450372,-1000.0,0.00017,2]
[328846049,1717871450382,-150.0,0.00017003,2]
[328846050,1717871450392,-672.01,0.00017061,2]
[328846051,1717871450402,-452.499,0.00017061,2]
[328846052,1717871450412,-150.0,0.00017061,2]
[328846053,1717871450422,-617.59176191,0.0001716,2]
[328846054,1717871450432,-210.70919737,0.0001716,2]
[328846055,1717871450442,-620.0472055,0.00017205,2]
[328846056,1717871450452,-292.25983908,0.00017258,2]
[328846057,1717871450461,-672.01,0.00017259,2]
[328846058,1717871450471,-500.0,0.0001726,2]
[328846059,1717871450483,-500.0,0.0001726,2]
[328846060,1717871450493,-500.0,0.0001726,2]
[328846061,1717871450503,-500.0,0.0001726,2]
[328846062,1717871450513,-500.0,0.0001726,2]
[328846063,1717871450627,-500.0,0.0001726,2]
[328846064,1717871450638,-506.47,0.0001726,2]
[328846065,1717871450648,-500.0,0.0001726,2]
[328846066,1717871450658,-500.0,0.0001726,2]
[328846067,1717871450668,-500.0,0.0001726,2]
[328846068,1717871450677,-500.0,0.0001726,2]
[328846069,1717871450688,-500.0,0.0001726,2]
[328846070,1717871450697,-169.13838736,0.0001726,2]
[328846071,1717871450707,-500.0,0.0001726,2]
[328846072,1717871450717,-500.0,0.0001726,2]
[328846073,1717871450726,-500.0,0.0001726,2]
[328846074,1717871450737,-500.0,0.0001726,2]
[328846075,1717871450747,-500.0,0.0001726,2]
[328846076,1717871450756,-500.0,0.0001726,2]
[328846077,1717871450765,-352.72339032,0.0001726,2]
[328846078,1717871450775,-500.0,0.0001726,2]
[328846079,1717871450785,-393.14439212,0.0001726,2]
[328846080,1717871450794,-500.0,0.0001726,2]
[328846081,1717871450804,-500.0,0.0001726,2]
[328846082,1717871450814,-500.0,0.0001726,2]
[328846083,1717871450824,-500.0,0.0001726,2]
[328846084,1717871450834,-500.0,0.0001726,2]
[328846085,1717871450844,-500.0,0.0001726,2]
[328846086,1717871450854,-500.0,0.0001726,2]
[328846087,1717871450864,-500.0,0.0001726,2]
[328846088,1717871450874,-500.0,0.0001726,2]
[328846089,1717871450884,-500.0,0.0001726,2]
[328846090,1717871450894,-500.0,0.0001726,2]
[328846091,1717871450904,-195.35795499,0.0001726,2]
[328846092,1717871450914,-704.28,0.0001726,2]
[328846093,1717871450924,-500.0,0.0001726,2]
[328846094,1717871450934,-504.43232428,0.0001726,2]
[328846095,1717871450945,-500.0,0.0001726,2]
[328846096,1717871450959,-500.0,0.0001726,2]
[328846097,1717871450968,-500.0,0.0001726,2]
[328846098,1717871450977,-2443.88,0.0001726,2]
[328846099,1717871450987,-500.0,0.0001726,2]
[328846100,1717871450998,-627.17,0.0001726,2]
[328846101,1717871451008,-500.0,0.0001726,2]
[328846102,1717871451018,-544.25673357,0.0001726,2]
[328846103,1717871451028,-500.0,0.0001726,2]
[328846104,1717871451038,-615.68,0.0001726,2]
[328846105,1717871451048,-1169.43,0.0001726,2]
[328846106,1717871451058,-500.0,0.0001726,2]
[328846107,1717871451068,-9986.09,0.0001726,2]
[328846108,1717871451078,-500.0,0.0001726,2]
[328846109,1717871451087,-729.54,0.0001726,2]
[328846110,1717871451097,-592.49,0.0001726,2]
[328846111,1717871451106,-405.46648514,0.0001726,2]
[328846112,1717871451116,-500.0,0.0001726,2]
[328846113,1717871451126,-500.0,0.0001726,2]
[328846114,1717871451136,-2453.06,0.0001726,2]
[328846115,1717871451146,-1467.98,0.0001726,2]
[328846116,1717871451157,-607.62,0.0001726,2]
[328846117,1717871451166,-500.0,0.0001726,2]
[328846118,1717871451178,-591.77,0.0001726,2]
[328846119,1717871451188,-155.31544163,0.0001726,2]
[328846120,1717871451197,-500.0,0.0001726,2]
[328846121,1717871451207,-3580.48,0.0001726,2]
[328846122,1717871451218,-400.82160122,0.0001726,2]
[328846123,1717871451228,-500.0,0.0001726,2]
[328846124,1717871451239,-724.7,0.0001726,2]
[328846125,1717871451248,-709.55,0.0001726,2]
[328846126,1717871451258,-500.0,0.0001726,2]
[328846127,1717871451268,-500.0,0.0001726,2]
[328846128,1717871451278,-1740.05,0.0001726,2]
[328846129,1717871451288,-673.37,0.0001726,2]
[328846130,1717871451298,-1449.68,0.0001726,2]
[328846131,1717871451308,-500.0,0.0001726,2]
[328846132,1717871451318,-500.0,0.0001726,2]
[328846133,1717871451328,-1057.93,0.0001726,2]
[328846134,1717871451338,-2745.31,0.0001726,2]
[328846135,1717871451348,-509.58,0.0001726,2]
[328846136,1717871451358,-542.32,0.0001726,2]
[328846137,1717871451368,-500.0,0.0001726,2]
[328846138,1717871451378,-731.55,0.0001726,2]
[328846139,1717871451388,-587.08,0.0001726,2]
[328846140,1717871451398,-500.0,0.0001726,2]
[328846141,1717871451408,-794.29,0.0001726,2]
[328846142,1717871451419,-500.0,0.0001726,2]
[328846143,1717871451429,-500.0,0.0001726,2]
[328846144,1717871451439,-153.0,0.00017336,2]
[328846145,1717871451449,-672.01,0.00017532,2]
[328846146,1717871451459,-500.0,0.00017534,2]
[328846147,1717871451469,-500.0,0.00017534,2]
[328846148,1717871451481,-500.0,0.00017534,2]
[328846149,1717871451491,-500.0,0.00017534,2]
[328846150,1717871451501,-183.3169378,0.00017534,2]
[328846151,1717871451510,-500.0,0.00017534,2]
[328846152,1717871451520,-506.47,0.00017534,2]
[328846153,1717871451531,-500.0,0.00017534,2]
[328846154,1717871451541,-500.0,0.00017534,2]
[328846155,1717871451551,-500.0,0.00017534,2]
[328846156,1717871451561,-500.0,0.00017534,2]
[328846157,1717871451571,-500.0,0.00017534,2]
[328846158,1717871451582,-500.0,0.00017534,2]
[328846159,1717871451593,-500.0,0.00017534,2]
[328846160,1717871451604,-500.0,0.00017534,2]
[328846161,1717871451615,-500.0,0.00017534,2]
[328846162,1717871451625,-500.0,0.00017534,2]
[328846163,1717871451634,-500.0,0.00017534,2]
[328846164,1717871451644,-500.0,0.00017534,2]
[328846165,1717871451655,-366.38058271,0.00017534,2]
[328846166,1717871451666,-500.0,0.00017534,2]
[328846167,1717871451676,-500.0,0.00017534,2]
[328846168,1717871451687,-500.0,0.00017534,2]
[328846169,1717871451697,-500.0,0.00017534,2]
[328846170,1717871451706,-406.59770439,0.00017534,2]
[328846171,1717871451716,-500.0,0.00017534,2]
[328846172,1717871451726,-500.0,0.00017534,2]
[328846173,1717871451738,-556.85168651,0.00017534,2]
[328846174,1717871451749,-500.0,0.00017534,2]
[328846175,1717871451760,-335.71536797,0.00017534,2]
[328846176,1717871451769,-704.28,0.00017534,2]
[328846177,1717871451779,-500.0,0.00017534,2]
[328846178,1717871451789,-500.0,0.00017534,2]
[328846179,1717871451799,-2443.88,0.00017534,2]